[Event "DLM Youth 2024"]
[Site "Tuebingen"]
[Date "2024.10.03"]
[Round "2"]
[White "Mukazhanov, Mansur"]
[Black "Buchholz, Maja Patricia"]
[Result "1-0"]
[ECO "C07"]
[WhiteElo "1894"]
[BlackElo "1988"]
[Annotator "NA RC"]
[PlyCount "109"]
[EventDate "2024.10.03"]
[EventType "team-swiss"]
[EventRounds "7"]
[EventCountry "GER"]
[SourceTitle "playchess.com"]
[Source "ChessBase"]
[SourceQuality "1"]
[TimeControl "40/5400+30:1800+30"]

1. e4 {[%emt 0:00:02]} e6 {[%emt 0:00:06]} 2. d4 {[%emt 0:00:04]} d5 {[%emt 0:00:06]} 3. Nd2 {[%emt 0:00:59]} c5 {[%emt 0:01:01]} 4. exd5 {[%emt 0:00:08]} Qxd5 {[%emt 0:00:12]} 5. Ngf3 {[%emt 0:00:12]} cxd4 {[%emt 0:00:14]} 6. Bc4 {[%emt 0:00:07]} Qd6 {[%emt 0:00:05]} 7. Nb3 {[%emt 0:00:05]} Qb4+ {[%emt 0:05:35]} 8. Nbd2 {[%emt 0:00:09]} Nc6 {[%emt 0:00:53]} 9. O-O {[%emt 0:00:15]} Nf6 {[%emt 0:03:03]} 10. a3 {[%emt 0:00:33]} Qc5 {[%emt 0:15:09]} 11. b4 {[%emt 0:00:24]} Qh5 {[%emt 0:00:38]} 12. Nb3 {[%emt 0:01:00]} Bd6 {[%emt 0:00:53]} 13. Nbxd4 {[%emt 0:00:43]} Nxd4 {[%emt 0:14:45]} 14. Qxd4 {[%emt 0:00:10]} Be7 {[%emt 0:00:10]} 15. Bb2 {[%emt 0:00:29]} O-O {[%emt 0:00:56]} 16. Rfe1 {[%emt 0:02:52]} Rd8 {[%emt 0:01:59]} 17. Qc3 {[%emt 0:00:12]} Bd6 {[%emt 0:04:44]} 18. Rad1 {[%emt 0:00:37]} e5 {[%emt 0:16:58]} 19. Rxe5 {[%emt 0:00:42]} Bf5 {[%emt 0:00:40]} 20. Red5 {[%emt 0:00:28]} Bxh2+ {[%emt 0:05:03]} 21. Nxh2 {[%emt 0:00:37]} Qxd1+ {[%emt 0:00:37]} 22. Rxd1 {[%emt 0:00:09]} Rxd1+ {[%emt 0:00:01]} 23. Nf1 {[%emt 0:00:07]} Rc8 {[%emt 0:02:52]} 24. Qg3 {[%emt 0:05:27]} Bg6 {[%emt 0:02:24]} 25. Qf3 {[%emt 0:03:29]} Rd7 {[%emt 0:11:01]} 26. Bxf6 {[%emt 0:01:32]} Rxc4 {[%emt 0:01:23]} 27. Ne3 {[%emt 0:00:44]} Re4 {[%emt 0:04:39]} 28. Bb2 {[%emt 0:01:25]} b5 {[%emt 0:02:36]} 29. Qg3 {[%emt 0:00:43]} Re8 {[%emt 0:01:00]} 30. Qg5 {[%emt 0:08:05]} a6 {[%emt 0:00:48]} 31. Ng4 {[%emt 0:01:53]} Rd1+ {[%emt 0:02:25]} 32. Kh2 {[%emt 0:00:08]} Re6 {[%emt 0:01:17]} 33. f4 {[%emt 0:03:02]} f6 {[%emt 0:01:17]} 34. Bxf6 {[%emt 0:00:39]} gxf6 {[%emt 0:00:30]} 35. Nxf6+ {[%emt 0:00:10]} Kf7 {[%emt 0:00:28]} 36. Nxh7 {[%emt 0:00:09]} Rf1 {[%emt 0:00:41]} 37. Qh6 {[%emt 0:00:23]} Bxh7 {[%emt 0:01:04]} 38. Qxh7+ {[%emt 0:00:07]} Ke8 {[%emt 0:00:28]} 39. f5 {[%emt 0:01:37]} Rd6 {[%emt 0:00:34]} 40. Qc7 {[%emt 0:00:55]} Rfd1 {[%emt 0:00:41]} 41. Kg3 {[%emt 0:31:40]} R1d4 {[%emt 0:07:10]} 42. f6 {[%emt 0:00:00]} Rd7 {[%emt 0:00:54]} 43. Qc8+ {[%emt 0:00:00]} Kf7 {[%emt 0:00:14]} 44. Qxa6 {[%emt 0:00:00]} R4d5 {[%emt 0:00:16]} 45. c4 {[%emt 0:00:00]} bxc4 {[%emt 0:01:52]} 46. Qxc4 {[%emt 0:00:00]} Kxf6 {[%emt 0:00:05]} 47. b5 {[%emt 0:00:00]} Rg7+ {[%emt 0:03:12]} 48. Kh2 {[%emt 0:00:00]} Rh7+ {[%emt 0:02:12]} 49. Kg1 {[%emt 0:00:00]} Rd1+ {[%emt 0:02:19]} 50. Kf2 {[%emt 0:00:00]} Rd2+ {[%emt 0:00:32]} 51. Kf3 {[%emt 0:00:00]} Rhd7 {[%emt 0:00:39]} 52. Ke3 {[%emt 0:00:00]} R2d6 {[%emt 0:00:44]} 53. a4 {[%emt 0:00:00]} Ke5 {[%emt 0:08:56]} 54. b6 {[%emt 0:00:00]} Rd4 {[%emt 0:00:45]} 55. Qc3 {[%emt 0:00:00]} 1-0

[Event "DLM Youth 2024"]
[Site "Tuebingen"]
[Date "2024.10.03"]
[Round "2"]
[White "Fischermann, Simon"]
[Black "Jacobasch, Ronja"]
[Result "1-0"]
[ECO "B08"]
[WhiteElo "1873"]
[BlackElo "1879"]
[Annotator "NA RC"]
[PlyCount "63"]
[EventDate "2024.10.03"]
[EventType "team-swiss"]
[EventRounds "7"]
[EventCountry "GER"]
[SourceTitle "playchess.com"]
[Source "ChessBase"]
[SourceQuality "1"]
[TimeControl "40/5400+30:1800+30"]

1. e4 {[%emt 0:00:01]} d6 {[%emt 0:00:07]} 2. d4 {[%emt 0:00:05]} Nf6 {[%emt 0:00:06]} 3. Nc3 {[%emt 0:00:06]} g6 {[%emt 0:00:09]} 4. Nf3 {[%emt 0:00:01]} Bg7 {[%emt 0:00:10]} 5. h3 {[%emt 0:00:07]} O-O {[%emt 0:01:13]} 6. Be3 {[%emt 0:00:13]} c5 {[%emt 0:06:22]} 7. dxc5 {[%emt 0:01:16]} Qa5 {[%emt 0:03:26]} 8. Bd3 {[%emt 0:00:29]} dxc5 {[%emt 0:02:19]} 9. O-O {[%emt 0:00:12]} Rd8 {[%emt 0:10:38]} 10. Qe1 {[%emt 0:00:41]} Nc6 {[%emt 0:04:07]} 11. e5 {[%emt 0:03:22]} Nd5 {[%emt 0:12:57]} 12. Nxd5 {[%emt 0:00:43]} Qxe1 {[%emt 0:15:46]} 13. Rfxe1 {[%emt 0:00:54]} Rxd5 {[%emt 0:00:23]} 14. Be4 {[%emt 0:00:05]} Rd8 {[%emt 0:01:08]} 15. Bxc6 {[%emt 0:00:25]} bxc6 {[%emt 0:00:21]} 16. Bxc5 {[%emt 0:00:04]} Kf8 {[%emt 0:03:53]} 17. c4 {[%emt 0:01:07]} a5 {[%emt 0:09:32]} 18. b3 {[%emt 0:02:15]} a4 {[%emt 0:01:50]} 19. Rad1 {[%emt 0:00:56]} Rxd1 {[%emt 0:04:43]} 20. Rxd1 {[%emt 0:00:38]} Bf5 {[%emt 0:03:23]} 21. b4 {[%emt 0:01:24]} Ke8 {[%emt 0:04:00]} 22. Nd4 {[%emt 0:01:17]} Bxe5 {[%emt 0:06:55]} 23. Nxc6 {[%emt 0:01:26]} Bf6 {[%emt 0:01:04]} 24. b5 {[%emt 0:00:53]} Rc8 {[%emt 0:03:13]} 25. Bd4 {[%emt 0:02:37]} Bd7 {[%emt 0:01:51]} 26. Bxf6 {[%emt 0:01:16]} Bxc6 {[%emt 0:00:57]} 27. Re1 {[%emt 0:00:14]} Ba8 {[%emt 0:01:21]} 28. Rxe7+ {[%emt 0:00:35]} Kf8 {[%emt 0:00:24]} 29. Ra7 {[%emt 0:00:20]} Be4 {[%emt 0:01:06]} 30. b6 {[%emt 0:01:13]} Rb8 {[%emt 0:01:29]} 31. b7 {[%emt 0:00:41]} Bxb7 {[%emt 0:00:05]} 32. Be5 {[%emt 0:00:35]} 1-0

[Event "DLM Youth 2024"]
[Site "Tuebingen"]
[Date "2024.10.03"]
[Round "2"]
[White "Yin, Vito"]
[Black "Sun, Christopher"]
[Result "1-0"]
[ECO "A25"]
[WhiteElo "1859"]
[BlackElo "1711"]
[Annotator "NA RC"]
[PlyCount "69"]
[EventDate "2024.10.03"]
[EventType "team-swiss"]
[EventRounds "7"]
[EventCountry "GER"]
[SourceTitle "playchess.com"]
[Source "ChessBase"]
[SourceQuality "1"]
[TimeControl "40/5400+30:1800+30"]

1. c4 {[%emt 0:00:06]} e5 {[%emt 0:00:04]} 2. Nc3 {[%emt 0:00:07]} Nf6 {[%emt 0:00:05]} 3. g3 {[%emt 0:00:17]} Bc5 {[%emt 0:00:08]} 4. Bg2 {[%emt 0:00:08]} d6 {[%emt 0:00:46]} 5. e3 {[%emt 0:00:30]} Nc6 {[%emt 0:01:44]} 6. Nge2 {[%emt 0:00:32]} Bd7 {[%emt 0:00:59]} 7. a3 {[%emt 0:00:29]} a5 {[%emt 0:02:43]} 8. O-O {[%emt 0:00:36]} O-O {[%emt 0:00:45]} 9. d4 {[%emt 0:02:13]} exd4 {[%emt 0:00:42]} 10. exd4 {[%emt 0:00:10]} Ba7 {[%emt 0:00:31]} 11. Be3 {[%emt 0:01:51]} Re8 {[%emt 0:02:54]} 12. b4 {[%emt 0:01:10]} axb4 {[%emt 0:01:52]} 13. axb4 {[%emt 0:00:13]} Qe7 {[%emt 0:13:55]} 14. Bg5 {[%emt 0:03:44]} Bg4 {[%emt 0:09:52]} 15. f3 {[%emt 0:03:43]} Be6 {[%emt 0:05:07]} 16. b5 {[%emt 0:21:12]} Nb8 {[%emt 0:03:04]} 17. Qd3 {[%emt 0:00:55]} Nbd7 {[%emt 0:02:20]} 18. Kh1 {[%emt 0:03:57]} h6 {[%emt 0:03:41]} 19. Bd2 {[%emt 0:02:02]} Bb6 {[%emt 0:11:49]} 20. f4 {[%emt 0:03:53]} Rxa1 {[%emt 0:02:18]} 21. Rxa1 {[%emt 0:00:09]} Bg4 {[%emt 0:02:06]} 22. Ng1 {[%emt 0:00:20]} Qe6 {[%emt 0:06:36]} 23. Re1 {[%emt 0:04:34]} Qf5 {[%emt 0:01:01]} 24. Rxe8+ {[%emt 0:00:18]} Nxe8 {[%emt 0:00:06]} 25. Be4 {[%emt 0:00:17]} Qf6 {[%emt 0:02:32]} 26. Be3 {[%emt 0:00:48]} Qe6 {[%emt 0:01:37]} 27. f5 {[%emt 0:00:32]} Qf6 {[%emt 0:04:11]} 28. Nd5 {[%emt 0:00:19]} Qd8 {[%emt 0:00:31]} 29. h3 {[%emt 0:00:26]} Bh5 {[%emt 0:00:29]} 30. Nf4 {[%emt 0:02:05]} Nef6 {[%emt 0:01:29]} 31. Bxb7 {[%emt 0:00:39]} Qe7 {[%emt 0:07:16]} 32. Bc6 {[%emt 0:06:08]} Bd1 {[%emt 0:06:32]} 33. Bxd7 {[%emt 0:00:28]} Nxd7 {[%emt 0:00:19]} 34. Nd5 {[%emt 0:00:08]} Qe8 {[%emt 0:00:49]} 35. Qxd1 {[%emt 0:00:41]} 1-0

[Event "DLM Youth 2024"]
[Site "Tuebingen"]
[Date "2024.10.03"]
[Round "2"]
[White "Glowiak, Alexandra"]
[Black "Kovalskyy, Alicia"]
[Result "1/2-1/2"]
[ECO "C54"]
[WhiteElo "1839"]
[BlackElo "1908"]
[Annotator "NA RC"]
[PlyCount "91"]
[EventDate "2024.10.03"]
[EventType "team-swiss"]
[EventRounds "7"]
[EventCountry "GER"]
[SourceTitle "playchess.com"]
[Source "ChessBase"]
[SourceQuality "1"]
[TimeControl "40/5400+30:1800+30"]

1. e4 {[%emt 0:00:03]} e5 {[%emt 0:00:05]} 2. Nf3 {[%emt 0:00:03]} Nc6 {[%emt 0:00:05]} 3. Bc4 {[%emt 0:00:04]} Bc5 {[%emt 0:00:05]} 4. c3 {[%emt 0:00:03]} Nf6 {[%emt 0:00:06]} 5. d3 {[%emt 0:00:03]} d6 {[%emt 0:00:14]} 6. a4 {[%emt 0:00:22]} a5 {[%emt 0:00:29]} 7. h3 {[%emt 0:03:02]} h6 {[%emt 0:01:18]} 8. Nbd2 {[%emt 0:02:08]} Be6 {[%emt 0:02:50]} 9. Bxe6 {[%emt 0:03:28]} fxe6 {[%emt 0:00:06]} 10. Nc4 {[%emt 0:02:27]} O-O {[%emt 0:01:54]} 11. Be3 {[%emt 0:08:09]} Ba7 {[%emt 0:07:15]} 12. Bxa7 {[%emt 0:06:56]} Rxa7 {[%emt 0:01:58]} 13. O-O {[%emt 0:01:07]} Qe8 {[%emt 0:00:39]} 14. Nh2 {[%emt 0:31:55]} Nh5 {[%emt 0:07:38]} 15. g3 {[%emt 0:09:18]} Nf6 {[%emt 0:11:02]} 16. Qe2 {[%emt 0:04:11]} Ra8 {[%emt 0:07:00]} 17. f4 {[%emt 0:05:18]} Qg6 {[%emt 0:04:35]} 18. g4 {[%emt 0:09:26]} exf4 {[%emt 0:04:17]} 19. Rxf4 {[%emt 0:08:56]} Nh5 {[%emt 0:01:38]} 20. Rxf8+ {[%emt 0:00:10]} Rxf8 {[%emt 0:00:06]} 21. Qe3 {[%emt 0:01:09]} Nf4 {[%emt 0:01:45]} 22. d4 {[%emt 0:01:12]} Qg5 {[%emt 0:03:52]} 23. Rf1 {[%emt 0:01:15]} e5 {[%emt 0:04:40]} 24. Kh1 {[%emt 0:01:04]} Qe7 {[%emt 0:14:52]} 25. d5 {[%emt 0:00:31]} Nd8 {[%emt 0:00:45]} 26. Nd2 {[%emt 0:00:21]} Nf7 {[%emt 0:00:48]} 27. Qg3 {[%emt 0:00:14]} Qd7 {[%emt 0:09:00]} 28. b3 {[%emt 0:00:07]} c5 {[%emt 0:03:34]} 29. c4 {[%emt 0:00:36]} Qd8 {[%emt 0:05:33]} 30. Rf2 {[%emt 0:00:46]} Qb6 {[%emt 0:01:05]} 31. Qc3 {[%emt 0:00:55]} Qc7 {[%emt 0:01:33]} 32. Nhf1 {[%emt 0:00:30]} b6 {[%emt 0:01:08]} 33. Kh2 {[%emt 0:00:15]} Qd7 {[%emt 0:01:22]} 34. Ne3 {[%emt 0:00:41]} Qd8 {[%emt 0:00:54]} 35. Ng2 {[%emt 0:00:38]} Nxg2 {[%emt 0:02:41]} 36. Kxg2 {[%emt 0:00:02]} Ng5 {[%emt 0:00:20]} 37. Rxf8+ {[%emt 0:00:33]} Kxf8 {[%emt 0:00:36]} 38. h4 {[%emt 0:00:25]} Nf7 {[%emt 0:00:33]} 39. Kg3 {[%emt 0:00:34]} Nh8 {[%emt 0:00:25]} 40. Qf3+ {[%emt 0:00:30]} Kg8 {[%emt 0:00:37]} 41. Qf5 {[%emt 0:06:22]} Qe8 {[%emt 0:02:08]} 42. h5 {[%emt 0:09:14]} g6 {[%emt 0:10:29]} 43. Qf6 {[%emt 0:00:37]} Qf7 {[%emt 0:06:45]} 44. Qxf7+ {[%emt 0:01:05]} Nxf7 {[%emt 0:00:35]} 45. Nf3 {[%emt 0:06:53]} Ng5 {[%emt 0:00:50]} 46. Nxg5 {[%emt 0:00:37]} 1/2-1/2

[Event "DLM Youth 2024"]
[Site "Tuebingen"]
[Date "2024.10.03"]
[Round "2"]
[White "Stehning, Toni"]
[Black "Hoffmann, Sophia"]
[Result "1-0"]
[ECO "C54"]
[WhiteElo "1817"]
[BlackElo "1718"]
[Annotator "NA RC"]
[PlyCount "76"]
[EventDate "2024.10.03"]
[EventType "team-swiss"]
[EventRounds "7"]
[EventCountry "GER"]
[SourceTitle "playchess.com"]
[Source "ChessBase"]
[SourceQuality "1"]
[TimeControl "40/5400+30:1800+30"]

1. e4 {[%emt 0:00:04]} e5 {[%emt 0:16:54]} 2. Nf3 {[%emt 0:00:13]} Nc6 {[%emt 0:00:08]} 3. Bc4 {[%emt 0:00:06]} Bc5 {[%emt 0:00:10]} 4. c3 {[%emt 0:00:05]} Nf6 {[%emt 0:00:12]} 5. d4 {[%emt 0:00:08]} exd4 {[%emt 0:00:21]} 6. e5 {[%emt 0:00:11]} d5 {[%emt 0:00:08]} 7. Bb5 {[%emt 0:00:06]} Ne4 {[%emt 0:00:20]} 8. cxd4 {[%emt 0:00:08]} Bb6 {[%emt 0:00:18]} 9. Nc3 {[%emt 0:00:30]} O-O {[%emt 0:00:46]} 10. Be3 {[%emt 0:00:39]} Bg4 {[%emt 0:00:43]} 11. h3 {[%emt 0:00:37]} Bh5 {[%emt 0:00:09]} 12. Qc2 {[%emt 0:00:48]} Bg6 {[%emt 0:00:36]} 13. Qb3 {[%emt 0:00:24]} Ne7 {[%emt 0:00:54]} 14. O-O {[%emt 0:00:40]} c6 {[%emt 0:00:22]} 15. Bd3 {[%emt 0:00:14]} Nd2 {[%emt 0:01:49]} 16. Nxd2 {[%emt 0:01:50]} Bxd3 {[%emt 0:00:12]} 17. Rfe1 {[%emt 0:00:14]} Bg6 {[%emt 0:01:48]} 18. Na4 {[%emt 0:03:16]} f6 {[%emt 0:08:37]} 19. Nxb6 {[%emt 0:02:22]} axb6 {[%emt 0:00:18]} 20. exf6 {[%emt 0:06:38]} gxf6 {[%emt 0:16:00]} 21. f4 {[%emt 0:19:20]} Qc7 {[%emt 0:05:47]} 22. Nf3 {[%emt 0:11:43]} Rae8 {[%emt 0:09:08]} 23. Bd2 {[%emt 0:01:43]} Be4 {[%emt 0:03:52]} 24. Rxe4 {[%emt 0:00:32]} Kh8 {[%emt 0:02:24]} 25. Re2 {[%emt 0:00:19]} Rf7 {[%emt 0:07:40]} 26. Rae1 {[%emt 0:00:56]} Rg8 {[%emt 0:03:41]} 27. Qc2 {[%emt 0:02:32]} Qd7 {[%emt 0:05:59]} 28. Re6 {[%emt 0:04:03]} Ng6 {[%emt 0:07:17]} 29. f5 {[%emt 0:03:33]} Nf8 {[%emt 0:03:59]} 30. Bb4 {[%emt 0:02:27]} Rfg7 {[%emt 0:03:43]} 31. Re7 {[%emt 0:01:34]} Rxg2+ {[%emt 0:01:12]} 32. Qxg2 {[%emt 0:00:10]} Rxg2+ {[%emt 0:00:04]} 33. Kxg2 {[%emt 0:00:06]} Qxf5 {[%emt 0:00:36]} 34. Re8 {[%emt 0:00:09]} c5 {[%emt 0:00:26]} 35. Bd2 {[%emt 0:02:58]} Kg8 {[%emt 0:00:48]} 36. Kf2 {[%emt 0:13:19]} Qxh3 {[%emt 0:00:37]} 37. Bf4 {[%emt 0:00:05]} Qh5 {[%emt 0:00:30]} 38. Bd6 {[%emt 0:00:18]} Kg7 {[%emt 0:00:00]} 1-0

[Event "DLM Youth 2024"]
[Site "Tuebingen"]
[Date "2024.10.03"]
[Round "2"]
[White "Wartenberg, Alissa"]
[Black "Shevchenko, Igor"]
[Result "1-0"]
[ECO "B15"]
[WhiteElo "1813"]
[BlackElo "1856"]
[Annotator "NA RC"]
[PlyCount "55"]
[EventDate "2024.10.03"]
[EventType "team-swiss"]
[EventRounds "7"]
[EventCountry "GER"]
[SourceTitle "playchess.com"]
[Source "ChessBase"]
[SourceQuality "1"]
[TimeControl "40/5400+30:1800+30"]

1. e4 {[%emt 0:00:02]} c6 {[%emt 0:00:07]} 2. d4 {[%emt 0:00:04]} d5 {[%emt 0:00:07]} 3. Nc3 {[%emt 0:00:08]} dxe4 {[%emt 0:00:10]} 4. Nxe4 {[%emt 0:00:10]} Nf6 {[%emt 0:00:41]} 5. Nxf6+ {[%emt 0:00:05]} exf6 {[%emt 0:00:15]} 6. c3 {[%emt 0:00:05]} Bd6 {[%emt 0:00:37]} 7. Bd3 {[%emt 0:00:04]} O-O {[%emt 0:00:36]} 8. Qc2 {[%emt 0:00:03]} Re8+ {[%emt 0:00:24]} 9. Ne2 {[%emt 0:00:04]} h5 {[%emt 0:00:10]} 10. O-O {[%emt 0:00:06]} h4 {[%emt 0:08:41]} 11. h3 {[%emt 0:00:09]} Nd7 {[%emt 0:06:22]} 12. Be3 {[%emt 0:03:07]} Nf8 {[%emt 0:02:00]} 13. Rad1 {[%emt 0:02:52]} Be6 {[%emt 0:06:42]} 14. Rd2 {[%emt 0:05:52]} Qc7 {[%emt 0:09:49]} 15. Rc1 {[%emt 0:10:22]} g5 {[%emt 0:24:59]} 16. Bf5 {[%emt 0:08:51]} Qd7 {[%emt 0:09:46]} 17. Bxe6 {[%emt 0:00:46]} fxe6 {[%emt 0:02:12]} 18. c4 {[%emt 0:03:27]} Rac8 {[%emt 0:03:21]} 19. Nc3 {[%emt 0:15:56]} Kg7 {[%emt 0:04:10]} 20. d5 {[%emt 0:14:27]} cxd5 {[%emt 0:17:57]} 21. cxd5 {[%emt 0:01:19]} e5 {[%emt 0:01:05]} 22. Qb3 {[%emt 0:06:10]} b5 {[%emt 0:00:47]} 23. Rdc2 {[%emt 0:02:13]} b4 {[%emt 0:00:29]} 24. Ne4 {[%emt 0:00:18]} Rxc2 {[%emt 0:00:02]} 25. Rxc2 {[%emt 0:00:05]} f5 {[%emt 0:00:57]} 26. Nxd6 {[%emt 0:01:41]} Qxd6 {[%emt 0:00:05]} 27. Rc6 {[%emt 0:00:36]} Qb8 {[%emt 0:00:27]} 28. Bxg5 {[%emt 0:00:40]} 1-0

[Event "DLM Youth 2024"]
[Site "Tuebingen"]
[Date "2024.10.03"]
[Round "2"]
[White "Ensslen, Jakob"]
[Black "Fischer, Darja"]
[Result "0-1"]
[ECO "D02"]
[WhiteElo "1774"]
[BlackElo "1872"]
[Annotator "NA RC"]
[PlyCount "82"]
[EventDate "2024.10.03"]
[EventType "team-swiss"]
[EventRounds "7"]
[EventCountry "GER"]
[SourceTitle "playchess.com"]
[Source "ChessBase"]
[SourceQuality "1"]
[TimeControl "40/5400+30:1800+30"]

1. d4 {[%emt 0:00:05]} Nf6 {[%emt 0:00:05]} 2. Bf4 {[%emt 0:00:06]} e6 {[%emt 0:00:04]} 3. e3 {[%emt 0:00:08]} d5 {[%emt 0:00:13]} 4. Nf3 {[%emt 0:00:31]} Be7 {[%emt 0:00:08]} 5. c3 {[%emt 0:00:37]} O-O {[%emt 0:00:17]} 6. h4 {[%emt 0:00:50]} b6 {[%emt 0:00:38]} 7. Nbd2 {[%emt 0:01:13]} Ba6 {[%emt 0:00:55]} 8. Bxa6 {[%emt 0:00:26]} Nxa6 {[%emt 0:00:04]} 9. Ne5 {[%emt 0:06:04]} c5 {[%emt 0:03:58]} 10. Qe2 {[%emt 0:09:12]} Qc8 {[%emt 0:06:43]} 11. O-O-O {[%emt 0:10:05]} c4 {[%emt 0:09:47]} 12. g4 {[%emt 0:02:58]} Nd7 {[%emt 0:04:35]} 13. g5 {[%emt 0:04:48]} b5 {[%emt 0:08:39]} 14. h5 {[%emt 0:03:08]} f6 {[%emt 0:08:32]} 15. gxf6 {[%emt 0:03:23]} Bxf6 {[%emt 0:03:02]} 16. Rhg1 {[%emt 0:06:06]} Bxe5 {[%emt 0:10:56]} 17. dxe5 {[%emt 0:05:41]} Nac5 {[%emt 0:05:43]} 18. Bh6 {[%emt 0:05:59]} Nd3+ {[%emt 0:03:26]} 19. Kc2 {[%emt 0:03:31]} Rf7 {[%emt 0:01:56]} 20. f4 {[%emt 0:01:44]} N7c5 {[%emt 0:07:14]} 21. Qg2 {[%emt 0:04:12]} Qd7 {[%emt 0:01:34]} 22. Nf3 {[%emt 0:02:47]} b4 {[%emt 0:02:09]} 23. Nd4 {[%emt 0:05:03]} bxc3 {[%emt 0:02:12]} 24. b3 {[%emt 0:07:01]} Rb8 {[%emt 0:01:48]} 25. Rb1 {[%emt 0:01:59]} Kh8 {[%emt 0:02:29]} 26. Bg5 {[%emt 0:03:49]} Ne4 {[%emt 0:03:09]} 27. f5 {[%emt 0:02:24]} Nb4+ {[%emt 0:00:44]} 28. Kc1 {[%emt 0:04:54]} Qc7 {[%emt 0:03:35]} 29. Nxe6 {[%emt 0:01:44]} Qa5 {[%emt 0:00:59]} 30. Nxg7 {[%emt 0:01:55]} Nd3+ {[%emt 0:02:24]} 31. Kd1 {[%emt 0:00:40]} Ndf2+ {[%emt 0:01:28]} 32. Ke1 {[%emt 0:00:56]} c2+ {[%emt 0:00:15]} 33. Ke2 {[%emt 0:00:38]} Nd3 {[%emt 0:02:00]} 34. Kf3 {[%emt 0:02:13]} Nxe5+ {[%emt 0:00:54]} 35. Kf4 {[%emt 0:00:30]} Nd3+ {[%emt 0:00:31]} 36. Kf3 {[%emt 0:00:30]} Qd2 {[%emt 0:00:36]} 37. Rbf1 {[%emt 0:00:37]} Qxg2+ {[%emt 0:00:35]} 38. Rxg2 {[%emt 0:00:25]} Nxg5+ {[%emt 0:00:10]} 39. Rxg5 {[%emt 0:00:31]} Rxg7 {[%emt 0:00:07]} 40. Rxg7 {[%emt 0:00:21]} Kxg7 {[%emt 0:00:04]} 41. bxc4 {[%emt 0:30:35]} Rb1 {[%emt 0:30:14]} 0-1

[Event "DLM Youth 2024"]
[Site "Tuebingen"]
[Date "2024.10.03"]
[Round "2"]
[White "Aguike, Toshiya"]
[Black "Brunner, Sophia"]
[Result "0-1"]
[ECO "C01"]
[WhiteElo "1719"]
[BlackElo "1863"]
[Annotator "NA RC"]
[PlyCount "126"]
[EventDate "2024.10.03"]
[EventType "team-swiss"]
[EventRounds "7"]
[EventCountry "GER"]
[SourceTitle "playchess.com"]
[Source "ChessBase"]
[SourceQuality "1"]
[TimeControl "40/5400+30:1800+30"]

1. e4 {[%emt 0:00:25]} e6 {[%emt 0:00:13]} 2. d4 {[%emt 0:00:09]} d5 {[%emt 0:00:10]} 3. exd5 {[%emt 0:00:13]} exd5 {[%emt 0:00:09]} 4. Bd3 {[%emt 0:00:09]} Nc6 {[%emt 0:04:43]} 5. Nf3 {[%emt 0:00:14]} Bg4 {[%emt 0:01:16]} 6. c3 {[%emt 0:00:56]} Bd6 {[%emt 0:05:49]} 7. h3 {[%emt 0:01:31]} Bh5 {[%emt 0:01:40]} 8. O-O {[%emt 0:00:21]} Nge7 {[%emt 0:01:07]} 9. Nbd2 {[%emt 0:01:30]} Qd7 {[%emt 0:03:27]} 10. Qc2 {[%emt 0:00:59]} f6 {[%emt 0:01:25]} 11. Re1 {[%emt 0:00:44]} O-O-O {[%emt 0:00:34]} 12. b4 {[%emt 0:00:21]} Rde8 {[%emt 0:00:50]} 13. b5 {[%emt 0:00:21]} Nd8 {[%emt 0:00:00]} 14. c4 {[%emt 0:00:11]} dxc4 {[%emt 0:02:01]} 15. Nxc4 {[%emt 0:01:04]} Kb8 {[%emt 0:04:33]} 16. Nxd6 {[%emt 0:02:28]} Qxd6 {[%emt 0:00:28]} 17. Nd2 {[%emt 0:00:27]} Nd5 {[%emt 0:09:50]} 18. Bb2 {[%emt 0:02:00]} Nb4 {[%emt 0:03:34]} 19. Qb3 {[%emt 0:00:30]} Nxd3 {[%emt 0:00:28]} 20. Qxd3 {[%emt 0:00:11]} Bg6 {[%emt 0:00:27]} 21. Qb3 {[%emt 0:00:30]} Ne6 {[%emt 0:09:40]} 22. Qa4 {[%emt 0:01:32]} Nf4 {[%emt 0:02:16]} 23. Qb3 {[%emt 0:02:04]} Ne2+ {[%emt 0:06:09]} 24. Kh1 {[%emt 0:00:44]} Nxd4 {[%emt 0:01:17]} 25. Qa4 {[%emt 0:39:40]} Nc2 {[%emt 0:05:04]} 26. Nc4 {[%emt 0:04:07]} Qc5 {[%emt 0:07:13]} 27. Rxe8+ {[%emt 0:03:26]} Rxe8 {[%emt 0:00:08]} 28. f3 {[%emt 0:01:26]} Qf2 {[%emt 0:07:29]} 29. Rg1 {[%emt 0:04:11]} Re1 {[%emt 0:04:29]} 30. Rxe1 {[%emt 0:00:25]} Nxe1 {[%emt 0:00:50]} 31. Ne3 {[%emt 0:00:33]} Qxe3 {[%emt 0:02:23]} 32. Bd4 {[%emt 0:00:13]} Qe2 {[%emt 0:00:10]} 33. Bxa7+ {[%emt 0:00:42]} Kc8 {[%emt 0:00:21]} 34. Qg4+ {[%emt 0:00:17]} f5 {[%emt 0:00:27]} 35. Qg3 {[%emt 0:00:56]} b6 {[%emt 0:01:12]} 36. a4 {[%emt 0:00:11]} Kb7 {[%emt 0:01:14]} 37. a5 {[%emt 0:01:04]} Qxg2+ {[%emt 0:00:51]} 38. Qxg2 {[%emt 0:00:35]} Nxg2 {[%emt 0:00:06]} 39. axb6 {[%emt 0:01:21]} cxb6 {[%emt 0:00:07]} 40. Bxb6 {[%emt 0:00:32]} Kxb6 {[%emt 0:00:05]} 41. Kxg2 {[%emt 0:30:11]} Kxb5 {[%emt 0:30:03]} 42. Kg3 {[%emt 0:00:18]} Kc5 {[%emt 0:01:26]} 43. Kf4 {[%emt 0:00:15]} Kd5 {[%emt 0:00:26]} 44. Kg5 {[%emt 0:00:06]} Ke5 {[%emt 0:00:45]} 45. h4 {[%emt 0:02:13]} Bf7 {[%emt 0:01:33]} 46. h5 {[%emt 0:10:07]} h6+ {[%emt 0:00:11]} 47. Kh4 {[%emt 0:00:10]} Kf4 {[%emt 0:00:06]} 48. Kh3 {[%emt 0:00:07]} Bxh5 {[%emt 0:00:14]} 49. Kh4 {[%emt 0:00:42]} Kxf3 {[%emt 0:00:50]} 50. Kxh5 {[%emt 0:00:07]} g5 {[%emt 0:00:02]} 51. Kxh6 {[%emt 0:00:09]} g4 {[%emt 0:00:02]} 52. Kg5 {[%emt 0:00:29]} g3 {[%emt 0:00:03]} 53. Kxf5 {[%emt 0:00:13]} g2 {[%emt 0:00:04]} 54. Ke5 {[%emt 0:00:14]} g1=Q {[%emt 0:00:05]} 55. Kd5 {[%emt 0:00:17]} Qg4 {[%emt 0:00:08]} 56. Ke5 {[%emt 0:00:07]} Qe4+ {[%emt 0:00:10]} 57. Kf6 {[%emt 0:00:14]} Qd5 {[%emt 0:00:05]} 58. Kg6 {[%emt 0:00:15]} Kf4 {[%emt 0:00:06]} 59. Kf6 {[%emt 0:00:17]} Qd6+ {[%emt 0:00:04]} 60. Kf7 {[%emt 0:00:15]} Kg5 {[%emt 0:00:17]} 61. Kg7 {[%emt 0:00:13]} Qe7+ {[%emt 0:00:09]} 62. Kg8 {[%emt 0:00:16]} Kg6 {[%emt 0:00:07]} 63. Kh8 {[%emt 0:00:08]} Qg7# {[%emt 0:00:03]} 0-1